fUSD/lending_fUSD_20260109
["ID","MTS","AMOUNT","RATE_DAILY","PERIOD"]
[401162039,1767999043195,-1598.51059064,0.000179,2]
[401162040,1767999043205,-1598.51059064,0.000179,2]
[401162041,1767999043215,-1598.51059064,0.000179,2]
[401162042,1767999043224,-1598.51059064,0.000179,2]
[401162043,1767999043235,-1598.51059064,0.000179,2]
[401162044,1767999043244,-565.17771938,0.000179,2]
[401162045,1767999043254,-219.18437703,0.000179,2]
[401162046,1767999043264,-151.0,0.000179,2]
[401162047,1767999043274,-297.140674,0.000179,2]
[401162048,1767999043283,-151.0,0.000179,2]
[401162049,1767999043293,-151.0,0.000179,2]
[401162050,1767999043305,-151.0,0.000179,2]
[401162051,1767999043315,-151.0,0.000179,2]
[401162052,1767999043324,-151.0,0.000179,2]
[401162053,1767999043335,-282.053337,0.000179,2]
[401162054,1767999043344,-151.0,0.000179,2]
[401162055,1767999043354,-151.0,0.000179,2]
[401162056,1767999043365,-217.957408,0.000179,2]
[401162057,1767999043375,-4190.04146351,0.000179,2]
[401162058,1767999043385,-179.53424757,0.000179,3]
[401162059,1767999043395,-333.04338533,0.000179,2]
[401162060,1767999043404,-151.0,0.000179,2]
[401162061,1767999043414,-151.0,0.000179,2]
[401162062,1767999043424,-1312.250724,0.000179,2]
[401162063,1767999043434,-769.26786,0.000179,2]
[401162064,1767999043444,-1312.250724,0.000179,2]
[401162065,1767999043453,-769.26786,0.000179,2]
[401162066,1767999043463,-1312.250724,0.000179,2]
[401162067,1767999043474,-769.26786,0.000179,2]
[401162068,1767999043483,-1312.250724,0.000179,2]
[401162069,1767999043494,-5055.06085975,0.000179,2]
[401162070,1767999043504,-151.0,0.000179,2]
[401162071,1767999043514,-769.26786,0.000179,2]
[401162072,1767999043524,-151.0,0.000179,2]
[401162073,1767999043533,-151.0,0.000179,2]
[401162074,1767999043552,-151.0,0.000179,2]
[401162075,1767999043562,-7159.0,0.000179,2]
[401162076,1767999043572,-151.0,0.00017902,2]
[401162077,1767999043583,-6000.0,0.0001791,2]
[401162078,1767999043593,-222.0,0.00017964,2]
[401162079,1767999043602,-500.0,0.00017973,2]
[401162080,1767999043612,-500.0,0.00017973,2]
[401162081,1767999043622,-279.31517583,0.00017973,2]
[401162082,1767999043632,-500.0,0.00017973,2]
[401162083,1767999043642,-150.0,0.00017973,2]
[401162084,1767999043652,-500.0,0.00017973,2]
[401162085,1767999043662,-500.0,0.00017973,2]
[401162086,1767999043672,-500.0,0.00017973,2]
[401162087,1767999043682,-500.0,0.00017973,2]
[401162088,1767999043691,-500.0,0.00017973,2]
[401162089,1767999043701,-500.0,0.00017973,2]
[401162090,1767999043711,-500.0,0.00017973,2]
[401162091,1767999043720,-500.0,0.00017973,2]
[401162092,1767999043730,-500.0,0.00017973,2]
[401162093,1767999043740,-500.0,0.00017973,2]
[401162094,1767999043749,-500.0,0.00017973,2]
[401162095,1767999043759,-500.0,0.00017973,2]
[401162096,1767999043768,-609.94892981,0.00017973,2]
[401162097,1767999043779,-286.84842062,0.00017973,2]
[401162098,1767999043788,-500.0,0.00017973,2]
[401162099,1767999043798,-515.27642925,0.00017973,2]
[401162100,1767999043807,-168.53464326,0.00017973,2]
[401162101,1767999043817,-195.06667749,0.00017973,2]
[401162102,1767999043827,-500.0,0.00017973,2]
[401162103,1767999043836,-500.0,0.00017973,2]
[401162104,1767999043846,-500.0,0.00017973,2]
[401162105,1767999043863,-500.0,0.00017973,2]
[401162106,1767999043885,-500.0,0.00017973,2]
[401162107,1767999043900,-500.0,0.00017973,2]
[401162108,1767999043910,-500.0,0.00017973,2]
[401162109,1767999043920,-501.05787152,0.00017973,2]
[401162110,1767999043929,-398.03125352,0.00017973,2]
[401162111,1767999043938,-500.0,0.00017973,2]
[401162112,1767999043947,-500.0,0.00017973,2]
[401162113,1767999043957,-500.0,0.00017973,2]
[401162114,1767999043968,-500.0,0.00017973,2]
[401162115,1767999043978,-500.0,0.00017973,2]
[401162116,1767999043988,-500.0,0.00017973,2]
[401162117,1767999043998,-500.0,0.00017973,2]
[401162118,1767999044008,-500.0,0.00017973,2]
[401162119,1767999044018,-500.0,0.00017973,2]
[401162120,1767999044027,-500.0,0.00017973,2]
[401162121,1767999044037,-500.0,0.00017973,2]
[401162122,1767999044047,-579.00077669,0.00017973,2]
[401162123,1767999044056,-500.0,0.00017973,2]
[401162124,1767999044065,-500.0,0.00017973,2]
[401162125,1767999044075,-578.02071049,0.00017973,2]
[401162126,1767999044085,-429.09119552,0.00017973,2]
[401162127,1767999044094,-500.0,0.00017973,2]
[401162128,1767999044104,-165.3256661,0.00017973,2]
[401162129,1767999044114,-500.0,0.00017973,2]
[401162130,1767999044123,-500.0,0.00017973,2]
[401162131,1767999044132,-500.0,0.00017973,2]
[401162132,1767999044142,-554.86072459,0.00017973,2]
[401162133,1767999044151,-208.06887662,0.00017973,2]
[401162134,1767999044161,-182.86859792,0.00017973,2]
[401162135,1767999044171,-500.0,0.00017973,2]
[401162136,1767999044181,-500.0,0.00017973,2]
[401162137,1767999044190,-500.0,0.00017973,2]
[401162138,1767999044200,-500.0,0.00017973,2]
[401162139,1767999044210,-500.0,0.00017973,2]
[401162140,1767999044220,-500.0,0.00017973,2]
[401162141,1767999044234,-500.0,0.00017973,2]
[401162142,1767999044245,-546.15438132,0.00017973,2]
[401162143,1767999044255,-150.0,0.00017973,2]
[401162144,1767999044265,-500.0,0.00017982,2]
[401162145,1767999044276,-152.75103688,0.00017982,2]
[401162146,1767999044285,-329.86376236,0.0001799,2]
[401162147,1767999044296,-329.86376236,0.0001799,2]
[401162148,1767999044308,-3913.3106083,0.00017997,2]
[401162149,1767999044318,-82184.887344,0.00017997,2]
[401162150,1767999044328,-5217.7474777,0.00017997,2]
[401162151,1767999044339,-151.0,0.00017997,2]
[401162152,1767999044348,-238808.9897593,0.00017997,2]
[401162153,1767999044358,-151.0,0.00017997,2]
[401162154,1767999044369,-180.569573,0.00017997,2]
[401162155,1767999044380,-151.0,0.00017997,2]
[401162156,1767999044390,-151.0,0.00017997,2]
[401162157,1767999044400,-151.0,0.00017997,2]
[401162158,1767999044409,-151.0,0.00017997,2]
[401162159,1767999044423,-65175.0876299,0.00017997,2]
[401162160,1767999044433,-151.0,0.00017997,2]
[401162161,1767999044443,-151.0,0.00017997,2]
[401162162,1767999044454,-151.0,0.00017997,2]
[401162163,1767999044464,-290.85072,0.00017997,2]
[401162164,1767999044474,-251.524176,0.00017997,2]
[401162165,1767999044484,-290.85072,0.00017997,2]
[401162166,1767999044493,-290.85072,0.00017997,2]
[401162167,1767999044504,-290.85072,0.00017997,2]
[401162168,1767999044514,-151.0,0.00017997,2]
[401162169,1767999044524,-151.0,0.00017997,2]
[401162170,1767999044534,-151.0,0.00017997,2]
[401162171,1767999044544,-151.0,0.00017997,2]
[401162172,1767999044553,-151.0,0.00017997,2]
[401162173,1767999044564,-151.0,0.00017997,2]
[401162174,1767999044574,-151.0,0.00017997,2]
[401162175,1767999044584,-151.0,0.00017997,2]
[401162176,1767999044594,-151.0,0.00017997,2]
[401162177,1767999044603,-151.0,0.00017997,2]
[401162178,1767999044615,-151.0,0.00017997,2]
[401162179,1767999044624,-151.0,0.00017997,2]
[401162180,1767999044634,-151.0,0.00017997,2]
[401162181,1767999044643,-151.0,0.00017997,2]
[401162182,1767999044653,-269.254353,0.00017997,2]
[401162183,1767999044663,-183.936771,0.00017997,2]
[401162184,1767999044674,-395.664357,0.00017997,2]
[401162185,1767999044683,-183.936771,0.00017997,2]
[401162186,1767999044693,-395.664357,0.00017997,2]
[401162187,1767999044703,-183.936771,0.00017997,2]
[401162188,1767999044713,-395.664357,0.00017997,2]
[401162189,1767999044723,-183.936771,0.00017997,2]
[401162190,1767999044732,-395.664357,0.00017997,2]
[401162191,1767999044742,-169.776097,0.00017997,2]
[401162192,1767999044752,-151.0,0.00017997,2]
[401162193,1767999044761,-151.0,0.00017997,2]
[401162194,1767999044772,-180.868973,0.00017997,2]
[401162195,1767999044783,-151.0,0.00017997,2]
[401162196,1767999044793,-151.0,0.00017997,2]
[401162197,1767999044803,-151.0,0.00017997,2]
[401162198,1767999044813,-151.0,0.00017997,2]
[401162199,1767999044823,-151.0,0.00017997,2]
[401162200,1767999044833,-151.0,0.00017997,2]
[401162201,1767999044843,-151.0,0.00017997,2]
[401162202,1767999044854,-1312.250724,0.00017997,2]
[401162203,1767999044864,-769.26786,0.00017997,2]
[401162204,1767999044874,-1312.250724,0.00017997,2]
[401162205,1767999044884,-769.26786,0.00017997,2]
[401162206,1767999044895,-1312.250724,0.00017997,2]
[401162207,1767999044905,-769.26786,0.00017997,2]
[401162208,1767999044914,-1312.250724,0.00017997,2]
[401162209,1767999044925,-151.0,0.00017997,2]
[401162210,1767999044935,-151.0,0.00017997,2]
[401162211,1767999044945,-769.26786,0.00017997,2]
[401162212,1767999044954,-151.0,0.00017997,2]
[401162213,1767999044964,-151.0,0.00017997,2]
[401162214,1767999044974,-261.78722899,0.00017999,2]
[401162215,1767999044984,-1006.3197,0.00017999,2]
[401162216,1767999044994,-300.0,0.00017999,2]
[401162217,1767999045004,-300.0,0.00017999,2]
[401162218,1767999045014,-666.0,0.00017999,2]
[401162219,1767999045024,-300.0,0.00017999,2]
[401162220,1767999045034,-300.0,0.00017999,2]
[401162221,1767999045043,-666.0,0.00017999,2]
[401162222,1767999045053,-21661.999999,0.00018,2]
[401162223,1767999045063,-464966.01765402,0.00018,2]
[401162225,1767999046111,-500.0,0.0001146,2]
[401162226,1767999046122,-500.0,0.0001146,2]
[401162227,1767999046133,-500.0,0.0001146,2]
[401162228,1767999046143,-500.0,0.0001146,2]
[401162229,1767999046154,-500.0,0.00016438,2]
[401162231,1767999046165,-500.0,0.00016438,2]
[401162233,1767999046175,-500.0,0.00016438,2]
[401162235,1767999046185,-500.0,0.00016438,2]
[401162237,1767999046195,-500.0,0.00016438,2]
[401162239,1767999046205,-500.0,0.00016438,2]
[401162241,1767999046215,-151.0,0.000179,2]
[401162243,1767999046225,-8290.71464927,0.00018,2]
[401162245,1767999046238,-8567.68070531,0.00018,2]
[401162248,1767999046250,-437888.0,0.00018,2]
[401162250,1767999046262,-38683.1044579,0.00018,2]
[401162252,1767999046275,-1134.21112236,0.00018,2]
[401162257,1767999049488,-500.0,0.0001146,2]
[401162258,1767999049498,-500.0,0.0001146,2]
[401162259,1767999049508,-278.06873091,0.0001146,2]
[401162260,1767999049518,-321.68795959,0.0001146,2]
[401162261,1767999049529,-178.31204041,0.0001146,2]
[401162262,1767999049539,-500.0,0.0001146,2]
[401162263,1767999049549,-500.0,0.0001146,2]
[401162264,1767999049558,-500.0,0.0001146,2]
[401162265,1767999049568,-500.0,0.0001146,2]
[401162266,1767999049578,-500.0,0.0001146,2]
[401162267,1767999049587,-500.0,0.0001146,2]
[401162268,1767999049597,-500.0,0.0001146,2]
[401162269,1767999049607,-1842.68795959,0.0001223,2]
[401162270,1767999049620,-94.66375841,0.0001223,2]
[401162271,1767999049630,-500.0,0.00016438,2]
[401162272,1767999049639,-500.0,0.00016438,2]
[401162273,1767999049649,-469.34827146,0.00016438,2]
[401162274,1767999049659,-500.0,0.00016438,2]
[401162275,1767999049669,-301.0755564,0.00016438,2]
[401162276,1767999049681,-198.9244436,0.00016438,2]
[401162277,1767999049691,-500.0,0.00016438,2]
[401162278,1767999049701,-500.0,0.00016438,2]
[401162279,1767999049711,-500.0,0.00016438,2]
[401162280,1767999049721,-482.82,0.00017703,2]
[401162281,1767999049731,-151.0,0.000179,2]
[401162282,1767999049741,-283.734245,0.000179,2]
[401162283,1767999049751,-151.0,0.00017997,2]
[401162284,1767999049760,-182.690621,0.00017997,2]
[401162285,1767999049770,-33128.66002469,0.00018,2]
[401162286,1767999049831,-8911.79410613,0.00018,2]
[401162287,1767999049843,-962.72003439,0.00018,2]
[401162288,1767999049856,-791.07285415,0.00018,2]
[401162289,1767999049868,-373.96952708,0.00018,2]
[401162290,1767999049880,-616.0,0.00018,2]
[401162291,1767999049891,-4302.89348897,0.00018,2]
[401162292,1767999049903,-2486.13672743,0.00018,2]
[401162293,1767999049919,-3275.848593,0.00018,2]
[401162294,1767999049954,-26896.15235756,0.00018,2]
[401162295,1767999050018,-345.7829875,0.00018,2]
[401162296,1767999050029,-1620.7380464,0.00018,2]
[401162297,1767999050041,-507.22561048,0.00018,2]
[401162298,1767999050053,-500.0,0.00018,2]
[401162299,1767999050105,-195542.13897345,0.00018,2]
[401162300,1767999050116,-301.1,0.00018,2]
[401162301,1767999050127,-15268.48926332,0.00018,2]
[401162302,1767999050139,-187532.11431006,0.00018,2]
[401162340,1768000232876,-163.56,0.00015797,2]
[401162341,1768000232887,-150.0,0.00015899,2]
[401162342,1768000232898,-200.0,0.00015949,2]
[401162343,1768000232908,-200.0,0.0001595,2]
[401162344,1768000232918,-1200.0,0.00015967,2]
[401162345,1768000232928,-300.0,0.00015967,2]
[401162346,1768000232938,-1972.62496947,0.00015968,2]
[401162349,1768000238479,-11941.62503053,0.00015968,2]
[401162350,1768000238489,-231.83,0.00016006,2]
[401162351,1768000238499,-151.0,0.00016152,2]
[401162352,1768000238508,-151.0,0.00016152,2]
[401162353,1768000238518,-151.0,0.00016154,2]
[401162354,1768000238528,-151.0,0.00016154,2]
[401162355,1768000238538,-151.0,0.00016156,2]
[401162357,1768000238548,-151.0,0.00016156,2]
[401162358,1768000238558,-152.0,0.00016175,3]
[401162360,1768000238568,-152.0,0.00016379,4]
[401162362,1768000238578,-12344.32,0.00016438,2]
[401162364,1768000238589,-490.0,0.00016575,2]
[401162366,1768000238599,-124.36724596,0.00016583,5]
[401162370,1768000238635,-27.63275404,0.00016583,5]
[401162371,1768000238645,-159.9,0.00016712,2]
[401162372,1768000238655,-482.82,0.00016744,2]
[401162373,1768000238665,-403.68794517,0.00016772,2]
[401162374,1768000238677,-1182.28205483,0.00016772,2]
[401162375,1768000238687,-180.807,0.00016772,2]
[401162376,1768000238697,-776.6986,0.00016786,2]
[401162377,1768000238707,-152.0,0.00016788,6]
[401162378,1768000238718,-153.33075811,0.00016885,2]
[401162379,1768000238728,-231.27312905,0.00016885,2]
[401162380,1768000238737,-161.89119033,0.00016885,2]
[401162381,1768000238747,-158.10583778,0.00016885,2]
[401162382,1768000238760,-219.18437703,0.00016886,2]
[401162383,1768000238770,-150.0,0.00016886,2]
[401162384,1768000238780,-2421.35476217,0.00016886,2]
[401162385,1768000238790,-235.66005825,0.00016886,2]
[401162386,1768000238802,-235.66005825,0.00016886,2]
[401162387,1768000238812,-1131.0000325,0.00016886,2]
[401162388,1768000238875,-2978.91,0.00016886,2]
[401162389,1768000238888,-4141.776292,0.00016886,2]
[401162390,1768000238901,-4815.271,0.00016886,2]
[401162391,1768000238914,-7294.76997,0.00016886,2]
[401162392,1768000238926,-5699.00000005,0.00016886,2]
[401162393,1768000238938,-31340.76000001,0.00016886,2]
[401162394,1768000238951,-2149.884,0.00016886,2]
[401162395,1768000238963,-4318.269725,0.00016886,2]
[401162396,1768000238976,-3988.58000006,0.00016886,2]
[401162397,1768000238988,-691.00375427,0.00016886,2]
[401162398,1768000239064,-261.039,0.00016886,2]
[401162400,1768000240229,-424.13260555,0.00016879,2]
[401162401,1768000240242,-75.86739445,0.00016879,2]
[401162402,1768000240252,-500.0,0.00016879,2]
[401162403,1768000240263,-500.0,0.00016879,2]
[401162404,1768000240274,-500.0,0.00016879,2]
[401162405,1768000240285,-12.95375826,0.00016879,2]
[401162406,1768000240299,-487.04624174,0.00016879,2]
[401162407,1768000240309,-314.45913358,0.00016886,2]
[401162410,1768000241015,-492.57620706,0.00016879,2]
[401162411,1768000241027,-7.42379294,0.00016879,2]
[401162412,1768000241037,-500.0,0.00016879,2]
[401162413,1768000241048,-37.47336398,0.00016879,2]
[401162414,1768000241060,-452.93,0.00016879,2]
[401162415,1768000241072,-9.59663602,0.00016879,2]
[401162416,1768000241083,-690.40336398,0.00016886,2]
[401162417,1768000241095,-394.95440656,0.00016886,2]
[401162418,1768000241107,-315.51092811,0.00016886,2]
[401162419,1768000241119,-123641.20355682,0.00016886,2]
[401162420,1768000241142,-500.0,0.00016879,2]
[401162421,1768000241152,-301.04957216,0.00016886,2]
[401162422,1768000241245,-500.0,0.00016879,2]
[401162423,1768000241257,-443.58598797,0.00016879,2]
[401162424,1768000241270,-56.41401203,0.00016879,2]
[401162425,1768000241280,-4253.14802833,0.00016886,2]
[401162426,1768000241327,-364.22985899,0.00016879,2]
[401162427,1768000241337,-315.63623402,0.00016879,2]
[401162428,1768000241351,-500.0,0.00016879,2]
[401162429,1768000241362,-801279.00723657,0.00016886,2]
[401162430,1768000241372,-50546.06,0.00016986,2]
[401162431,1768000241750,-152.0,0.00016992,7]
[401162432,1768000241772,-2421.35476208,0.00016999,2]
[401162433,1768000241783,-250.0,0.00017,2]
[401162434,1768000241793,-1000.0,0.00017029,2]
[401162435,1768000241805,-235.66005818,0.00017031,2]
[401162436,1768000241815,-235.66005818,0.00017031,2]
[401162437,1768000241824,-553.64373807,0.00017067,2]
[401162438,1768000241835,-322.6107,0.00017067,2]
[401162439,1768000241844,-250.0,0.00017067,2]
[401162440,1768000241855,-250.0,0.00017067,2]
[401162441,1768000241865,-665.88,0.00017067,2]
[401162442,1768000241874,-2000.0,0.00017067,2]
[401162443,1768000241884,-2000.0,0.00017067,2]
[401162444,1768000241894,-2000.0,0.00017067,2]
[401162445,1768000241904,-407.91279506,0.00017067,2]
[401162446,1768000241914,-2421.35476208,0.00017111,2]
[401162447,1768000241924,-159.10718444,0.0001714,2]
[401162448,1768000241933,-965.45,0.00017141,2]
[401162449,1768000241943,-200.0,0.00017174,2]
[401162450,1768000241953,-235.66005818,0.00017176,2]
[401162451,1768000241963,-235.66005818,0.00017176,2]
[401162452,1768000241974,-152.0,0.00017197,8]
[401162453,1768000241984,-2421.35476208,0.00017224,2]
[401162454,1768000241994,-428.97,0.00017269,2]
[401162455,1768000242004,-235.66005818,0.00017321,2]
[401162456,1768000242014,-2421.35476208,0.00017337,2]
[401162457,1768000242024,-1000.0,0.000174,2]
[401162458,1768000242034,-152.0,0.00017401,9]
[401162459,1768000242044,-679.02103293,0.00017439,2]
[401162460,1768000242054,-500.0,0.00017444,2]
[401162461,1768000242064,-2421.35476208,0.00017449,2]
[401162462,1768000242074,-150.0,0.00017452,2]
[401162463,1768000242084,-420.0,0.00017458,2]
[401162464,1768000242094,-370.0,0.00017489,2]
[401162465,1768000242103,-500.0,0.00017499,2]
[401162466,1768000242113,-2000.0,0.000175,2]
[401162467,1768000242123,-1001.0,0.00017541,2]
[401162468,1768000242133,-1680.0,0.00017545,2]
[401162469,1768000242142,-500.0,0.00017554,2]
[401162470,1768000242151,-2421.35476208,0.00017562,2]
[401162471,1768000242161,-1000.0,0.00017565,2]
[401162472,1768000242171,-1000.0,0.000176,2]
[401162473,1768000242180,-152.0,0.00017605,10]
[401162474,1768000242190,-500.0,0.00017608,2]
[401162475,1768000242200,-574.12855637,0.00017615,2]
[401162476,1768000242209,-3506.18210615,0.0001764,2]
[401162477,1768000242219,-500.0,0.00017663,2]
[401162478,1768000242229,-556.4,0.0001767,2]
[401162479,1768000242239,-2421.35476208,0.00017675,2]
[401162480,1768000242248,-370.0,0.00017715,2]
[401162481,1768000242258,-518.0,0.00017718,2]
[401162482,1768000242268,-1559.98068708,0.00017774,2]
[401162483,1768000242278,-2537.63252813,0.00017774,2]
[401162484,1768000242288,-3583.89449815,0.00017774,2]
[401162485,1768000242298,-4637.4768,0.00017774,2]
[401162486,1768000242308,-500.0,0.00017781,2]
[401162487,1768000242318,-2421.35476208,0.00017787,2]
[401162488,1768000242328,-151.0,0.00017804,2]
[401162489,1768000242339,-200.35779431,0.00017808,2]
[401162490,1768000242349,-152.0,0.0001781,11]
[401162491,1768000242358,-586.95527749,0.00017816,2]
[401162492,1768000242368,-22119.43413187,0.0001783,2]
[401162493,1768000242390,-370.0,0.00017839,2]
[401162494,1768000242404,-502.0,0.00017843,2]
[401162495,1768000242414,-200.0,0.00017855,2]
[401162496,1768000242424,-2000.0,0.00017856,2]
[401162497,1768000242434,-200.0,0.00017856,2]
[401162498,1768000242444,-502.0,0.00017859,2]
[401162499,1768000242455,-219.90917491,0.0001789,2]
[401162500,1768000242465,-1000.0,0.00017891,2]
[401162501,1768000242475,-1000.0,0.00017891,2]
[401162502,1768000242485,-10000.0,0.00017897,2]
[401162503,1768000242495,-1738.1903,0.000179,2]
[401162504,1768000242505,-1000.0,0.000179,2]
[401162505,1768000242516,-25000.0,0.000179,3]
[401162506,1768000242526,-1598.51059064,0.000179,2]
[401162507,1768000242536,-1598.51059064,0.000179,2]
[401162508,1768000242546,-1598.51059064,0.000179,2]
[401162509,1768000242556,-1598.51059064,0.000179,2]
[401162510,1768000242566,-1598.51059064,0.000179,2]
[401162511,1768000242576,-1598.51059064,0.000179,2]
[401162512,1768000242586,-1598.51059064,0.000179,2]
[401162513,1768000242596,-1598.51059064,0.000179,2]
[401162514,1768000242605,-1598.51059064,0.000179,2]
[401162515,1768000242615,-1598.51059064,0.000179,2]
[401162516,1768000242625,-1598.51059064,0.000179,2]
[401162517,1768000242635,-1598.51059064,0.000179,2]
[401162518,1768000242645,-333.04338533,0.000179,2]
[401162519,1768000242655,-25000.0,0.000179,3]
[401162520,1768000242665,-179.53424757,0.000179,3]
[401162521,1768000242674,-8380.08292702,0.000179,2]
[401162522,1768000242684,-5419.66632669,0.000179,2]
[401162523,1768000242694,-5055.06085975,0.000179,2]
[401162524,1768000242704,-2421.35476208,0.000179,2]
[401162525,1768000242714,-500.0,0.000179,2]
[401162526,1768000242724,-500.0,0.000179,2]
[401162527,1768000242734,-500.0,0.000179,2]
[401162528,1768000242744,-500.0,0.000179,2]
[401162529,1768000242755,-500.0,0.000179,2]
[401162530,1768000242767,-500.0,0.000179,2]
[401162531,1768000242777,-500.0,0.000179,2]
[401162532,1768000242787,-500.0,0.000179,2]
[401162533,1768000242799,-500.0,0.000179,2]
[401162534,1768000242809,-500.0,0.000179,2]
[401162535,1768000242819,-500.0,0.000179,2]
[401162536,1768000242830,-500.0,0.000179,2]
[401162537,1768000242840,-500.0,0.000179,2]
[401162538,1768000242850,-500.0,0.000179,2]
[401162539,1768000242860,-500.0,0.000179,2]
[401162540,1768000242871,-500.0,0.000179,2]
[401162541,1768000242880,-500.0,0.000179,2]
[401162542,1768000242891,-500.0,0.000179,2]
[401162543,1768000242901,-500.0,0.000179,2]
[401162544,1768000242911,-500.0,0.000179,2]
[401162545,1768000242921,-500.0,0.000179,2]
[401162546,1768000242931,-500.0,0.000179,2]
[401162547,1768000242941,-500.0,0.000179,2]
[401162548,1768000242952,-500.0,0.000179,2]
[401162549,1768000242962,-500.0,0.000179,2]
[401162550,1768000242972,-500.0,0.000179,2]
[401162551,1768000242983,-500.0,0.000179,2]
[401162552,1768000242993,-500.0,0.000179,2]
[401162553,1768000243003,-500.0,0.000179,2]
[401162554,1768000243013,-500.0,0.000179,2]
[401162555,1768000243023,-500.0,0.000179,2]
[401162556,1768000243034,-324.05870169,0.000179,2]
[401162557,1768000243044,-7152.0,0.000179,2]
[401162558,1768000243053,-151.0,0.00017902,2]
[401162559,1768000243063,-11739.9318247,0.00017947,2]
[401162560,1768000243074,-51343.2104922,0.00017947,2]
[401162561,1768000243083,-1304.4368694,0.00017947,2]
[401162562,1768000243093,-53189.3238981,0.00017947,2]
[401162563,1768000243130,-467.97099624,0.00016879,2]
[401162564,1768000243183,-32.02900376,0.00016879,2]
[401162565,1768000243193,-500.0,0.00016879,2]
[401162566,1768000243203,-500.0,0.00016879,2]
[401162567,1768000243212,-1700.70099704,0.00017947,2]
[401162568,1768000243224,-446.54502388,0.00017947,2]
[401162569,1768000243235,-959.37255751,0.00017947,2]
[401162571,1768000244063,-500.0,0.00016879,2]
[401162572,1768000244073,-114.02345664,0.00016879,2]
[401162573,1768000244085,-385.97654336,0.00016879,2]
[401162574,1768000244095,-391.48337058,0.00016879,2]
[401162575,1768000244131,-108.51662942,0.00016879,2]
[401162576,1768000244141,-391.15651902,0.00016879,2]
[401162577,1768000244196,-108.84348098,0.00016879,2]
[401162578,1768000244206,-500.0,0.00016879,2]
[401162579,1768000244216,-500.0,0.00016879,2]
[401162580,1768000244226,-9.57381902,0.00016879,2]
[401162581,1768000244243,-490.42618098,0.00016879,2]
[401162582,1768000244253,-500.0,0.00016879,2]
[401162583,1768000244263,-174.75820828,0.00016879,2]
[401162584,1768000244275,-325.24179172,0.00016879,2]
[401162585,1768000244285,-500.0,0.00016879,2]
[401162586,1768000244294,-500.0,0.00016879,2]
[401162587,1768000244304,-500.0,0.00016879,2]
[401162588,1768000244314,-3461.45256528,0.00017947,2]
[401162589,1768000244326,-288.76872577,0.00017947,2]
[401162590,1768000244338,-3184.6982721,0.00017947,2]
[401162591,1768000244350,-26843.62044897,0.00017947,2]
[401162592,1768000245168,-2011.75052409,0.00017947,2]
[401162593,1768000245180,-160085.60496106,0.00017947,2]
[401162594,1768000245190,-7826.6212166,0.00017947,2]
[401162595,1768000245200,-68822.0391295,0.00017947,2]
[401162596,1768000245210,-500.0,0.00017973,2]
[401162597,1768000245219,-500.0,0.00017973,2]
[401162598,1768000245229,-500.0,0.00017973,2]
[401162599,1768000245239,-500.0,0.00017973,2]
[401162600,1768000245248,-579.00077669,0.00017973,2]
[401162601,1768000245258,-286.84842062,0.00017973,2]
[401162602,1768000245268,-500.0,0.00017973,2]
[401162603,1768000245277,-500.0,0.00017973,2]
[401162604,1768000245287,-500.0,0.00017973,2]
[401162605,1768000245297,-500.0,0.00017973,2]
[401162606,1768000245307,-500.0,0.00017973,2]